[Event "Late-Titled-Tuesday-Blitz-February-06-2024"]
[Site "Chess.com"]
[Date "2024.02.06"]
[Round "9"]
[White "el008"]
[Black "gahryman"]
[Result "1-0"]
[WhiteElo "2553"]
[BlackElo "2663"]
[TimeControl "180+1"]
[EndTime "15:45:36 PST"]
[Termination "el008 won on time"]

1. Nf3 {[%clk 0:03:00.9]} 1... d5 {[%clk 0:02:59.3]} 2. b3 {[%clk 0:03:01.3]}
2... Bg4 {[%clk 0:02:52.7]} 3. e3 {[%clk 0:02:59.4]} 3... Nd7 {[%clk 0:02:51.9]}
4. d4 {[%clk 0:02:58.6]} 4... Ngf6 {[%clk 0:02:51]} 5. Bb2 {[%clk 0:02:56.9]}
5... e6 {[%clk 0:02:51.1]} 6. c4 {[%clk 0:02:56.5]} 6... Ne4 {[%clk 0:02:45.1]}
7. a3 {[%clk 0:02:56.3]} 7... c6 {[%clk 0:02:41.3]} 8. Be2 {[%clk 0:02:52.5]}
8... Bd6 {[%clk 0:02:40.8]} 9. Nbd2 {[%clk 0:02:51.5]} 9... O-O {[%clk 0:02:37]}
10. Nxe4 {[%clk 0:02:50]} 10... dxe4 {[%clk 0:02:37.2]} 11. Nd2 {[%clk
0:02:50.9]} 11... Bxe2 {[%clk 0:02:37]} 12. Qxe2 {[%clk 0:02:51.8]} 12... f5
{[%clk 0:02:37.3]} 13. f3 {[%clk 0:02:47.4]} 13... exf3 {[%clk 0:02:34.8]} 14.
Nxf3 {[%clk 0:02:48.3]} 14... Nf6 {[%clk 0:02:33.8]} 15. Nd2 {[%clk 0:02:42.2]}
15... Qe7 {[%clk 0:02:21.3]} 16. e4 {[%clk 0:02:39.1]} 16... fxe4 {[%clk
0:01:42.8]} 17. Nxe4 {[%clk 0:02:40]} 17... Nxe4 {[%clk 0:01:43.3]} 18. Qxe4
{[%clk 0:02:40.9]} 18... Qg5 {[%clk 0:01:40.8]} 19. Bc1 {[%clk 0:02:05.8]} 19...
Qf5 {[%clk 0:01:14.4]} 20. Qxf5 {[%clk 0:02:03.8]} 20... exf5 {[%clk 0:01:15.3]}
21. O-O {[%clk 0:01:59.5]} 21... Rae8 {[%clk 0:01:12.3]} 22. Bf4 {[%clk
0:01:54.2]} 22... Bxf4 {[%clk 0:00:56.8]} 23. Rxf4 {[%clk 0:01:55.1]} 23... Re3
{[%clk 0:00:57]} 24. Rf3 {[%clk 0:01:49.8]} 24... Rxf3 {[%clk 0:00:23.8]} 25.
gxf3 {[%clk 0:01:50.7]} 25... Rd8 {[%clk 0:00:23.3]} 26. Rd1 {[%clk 0:01:49.5]}
26... Kf7 {[%clk 0:00:23.6]} 27. Kf2 {[%clk 0:01:49.5]} 27... Kf6 {[%clk
0:00:21.7]} 28. b4 {[%clk 0:01:43.2]} 28... b5 {[%clk 0:00:19.6]} 29. cxb5
{[%clk 0:01:41.7]} 29... cxb5 {[%clk 0:00:19.9]} 30. Ke3 {[%clk 0:01:42.1]}
30... Rc8 {[%clk 0:00:18.4]} 31. Kd3 {[%clk 0:01:41.9]} 31... Rc6 {[%clk
0:00:16]} 32. d5 {[%clk 0:01:40.5]} 32... Ra6 {[%clk 0:00:15.8]} 33. Kd4 {[%clk
0:01:39.6]} 33... Rxa3 {[%clk 0:00:14.4]} 34. Kc5 {[%clk 0:01:40.1]} 34... Rc3+
{[%clk 0:00:13.3]} 35. Kxb5 {[%clk 0:01:40.5]} 35... Ke7 {[%clk 0:00:13.5]} 36.
Ka6 {[%clk 0:01:29.6]} 36... Kd6 {[%clk 0:00:12.7]} 37. Kxa7 {[%clk 0:01:29.5]}
37... Rxf3 {[%clk 0:00:12.4]} 38. b5 {[%clk 0:01:28]} 38... Ra3+ {[%clk
0:00:12.5]} 39. Kb7 {[%clk 0:01:27.5]} 39... f4 {[%clk 0:00:12.6]} 40. b6 {[%clk
0:01:26.5]} 40... f3 {[%clk 0:00:12.5]} 41. Kb8 {[%clk 0:01:17.3]} 41... Rb3
{[%clk 0:00:11]} 42. b7 {[%clk 0:01:16.3]} 42... g5 {[%clk 0:00:11.6]} 43. h3
{[%clk 0:00:52.7]} 43... h5 {[%clk 0:00:11.1]} 44. Rg1 {[%clk 0:00:53.4]} 44...
f2 {[%clk 0:00:10.2]} 45. Rf1 {[%clk 0:00:53]} 45... Rb2 {[%clk 0:00:10.6]} 46.
Kc8 {[%clk 0:00:44.7]} 46... Rc2+ {[%clk 0:00:10.9]} 47. Kd8 {[%clk 0:00:40.5]}
47... Rb2 {[%clk 0:00:11.3]} 48. Rxf2 {[%clk 0:00:30.9]} 48... Rxb7 {[%clk
0:00:10.4]} 49. Rf6+ {[%clk 0:00:29.9]} 49... Ke5 {[%clk 0:00:10]} 50. Rh6
{[%clk 0:00:28.4]} 50... h4 {[%clk 0:00:09.7]} 51. d6 {[%clk 0:00:27.3]} 51...
Kf4 {[%clk 0:00:08.8]} 52. Kc8 {[%clk 0:00:22.9]} 52... Ra7 {[%clk 0:00:08.6]}
53. d7 {[%clk 0:00:15.7]} 53... Kg3 {[%clk 0:00:08]} 54. Rb6 {[%clk 0:00:08.7]}
54... Rxd7 {[%clk 0:00:07.4]} 55. Rb3+ {[%clk 0:00:08.8]} 55... Kf4 {[%clk
0:00:05.7]} 56. Kxd7 {[%clk 0:00:09.7]} 56... g4 {[%clk 0:00:06.5]} 57. Rb4+
{[%clk 0:00:03.8]} 57... Kg3 {[%clk 0:00:04.4]} 58. hxg4 {[%clk 0:00:04.7]}
58... h3 {[%clk 0:00:04.8]} 59. g5 {[%clk 0:00:05.3]} 59... h2 {[%clk
0:00:04.8]} 60. Rb1 {[%clk 0:00:05.1]} 60... Kg2 {[%clk 0:00:05.4]} 61. g6
{[%clk 0:00:05.1]} 1-0

[Event "Late-Titled-Tuesday-Blitz-February-06-2024"]
[Site "Chess.com"]
[Date "2024.02.06"]
[Round "9"]
[White "MolecularChemist"]
[Black "Elsa167"]
[Result "1-0"]
[WhiteElo "2972"]
[BlackElo "2899"]
[TimeControl "180+1"]
[EndTime "15:45:39 PST"]
[Termination "MolecularChemist won on time"]

1. d4 {[%clk 0:03:00.9]} 1... Nf6 {[%clk 0:02:58.2]} 2. Nf3 {[%clk 0:03:01.4]}
2... e6 {[%clk 0:02:58]} 3. c4 {[%clk 0:03:01.8]} 3... d5 {[%clk 0:02:53.2]} 4.
Nc3 {[%clk 0:02:52.4]} 4... a6 {[%clk 0:02:52.4]} 5. cxd5 {[%clk 0:02:48.3]}
5... exd5 {[%clk 0:02:53.3]} 6. Bg5 {[%clk 0:02:48.4]} 6... Be6 {[%clk
0:02:53.7]} 7. e3 {[%clk 0:02:48.8]} 7... Nbd7 {[%clk 0:02:53.9]} 8. Bd3 {[%clk
0:02:49]} 8... Bd6 {[%clk 0:02:54.3]} 9. h3 {[%clk 0:02:49.3]} 9... c6 {[%clk
0:02:54.4]} 10. O-O {[%clk 0:02:48.9]} 10... h6 {[%clk 0:02:53.2]} 11. Bf4
{[%clk 0:02:48.8]} 11... Qb8 {[%clk 0:02:53.1]} 12. Bxd6 {[%clk 0:02:49]} 12...
Qxd6 {[%clk 0:02:53.1]} 13. Qc2 {[%clk 0:02:47.8]} 13... g5 {[%clk 0:02:52.6]}
14. Bf5 {[%clk 0:02:37.5]} 14... Rg8 {[%clk 0:02:47.7]} 15. Rfe1 {[%clk
0:01:51.1]} 15... O-O-O {[%clk 0:02:25.9]} 16. Bxe6 {[%clk 0:01:30.8]} 16...
fxe6 {[%clk 0:01:40.5]} 17. e4 {[%clk 0:01:26.5]} 17... g4 {[%clk 0:01:27.2]}
18. e5 {[%clk 0:01:14.3]} 18... Qc7 {[%clk 0:01:26.2]} 19. hxg4 {[%clk
0:01:08.7]} 19... Nxg4 {[%clk 0:01:26.1]} 20. a4 {[%clk 0:01:03.4]} 20... Rdf8
{[%clk 0:01:25.3]} 21. Qe2 {[%clk 0:00:57.5]} 21... Qd8 {[%clk 0:01:07.6]} 22.
b4 {[%clk 0:00:53.5]} 22... Qe8 {[%clk 0:00:55.9]} 23. b5 {[%clk 0:00:50.4]}
23... Qg6 {[%clk 0:00:51]} 24. bxc6 {[%clk 0:00:38.4]} 24... bxc6 {[%clk
0:00:46]} 25. Qxa6+ {[%clk 0:00:32.5]} 25... Kd8 {[%clk 0:00:45.8]} 26. Qa8+
{[%clk 0:00:12.2]} 26... Ke7 {[%clk 0:00:45.5]} 27. Qxc6 {[%clk 0:00:12.9]}
27... Rxf3 {[%clk 0:00:27.6]} 28. Nxd5+ {[%clk 0:00:06.5]} 28... Kf8 {[%clk
0:00:23.4]} 29. Qc8+ {[%clk 0:00:02.7]} 29... Kg7 {[%clk 0:00:23.3]} 30. Qxg8+
{[%clk 0:00:03.3]} 30... Kxg8 {[%clk 0:00:21.4]} 31. Ne7+ {[%clk 0:00:04]} 31...
Kf7 {[%clk 0:00:21.9]} 32. Nxg6 {[%clk 0:00:04.9]} 32... Rxf2 {[%clk 0:00:22.6]}
33. Rf1 {[%clk 0:00:03.1]} 33... Rxf1+ {[%clk 0:00:22.5]} 34. Rxf1+ {[%clk
0:00:04]} 34... Kxg6 {[%clk 0:00:23.3]} 35. a5 {[%clk 0:00:04.7]} 35... Nb8
{[%clk 0:00:23]} 36. Rb1 {[%clk 0:00:04.4]} 36... Na6 {[%clk 0:00:22.7]} 37. Rb6
{[%clk 0:00:04.9]} 37... Nc7 {[%clk 0:00:23]} 38. a6 {[%clk 0:00:05.5]} 38...
Nxa6 {[%clk 0:00:20.8]} 39. Rxa6 {[%clk 0:00:06.4]} 39... Kf5 {[%clk 0:00:20.9]}
40. Rd6 {[%clk 0:00:06.3]} 40... Ne3 {[%clk 0:00:20.7]} 41. Kf2 {[%clk
0:00:06.4]} 41... Nc4 {[%clk 0:00:18]} 42. Rd7 {[%clk 0:00:05.9]} 42... Nd2
{[%clk 0:00:17.2]} 43. Ke3 {[%clk 0:00:05.5]} 43... Nc4+ {[%clk 0:00:17.3]} 44.
Kd3 {[%clk 0:00:05.8]} 44... Nb6 {[%clk 0:00:17.7]} 45. Rf7+ {[%clk 0:00:05.4]}
45... Kg5 {[%clk 0:00:17.3]} 46. Rf6 {[%clk 0:00:05.7]} 46... Nd5 {[%clk
0:00:17.9]} 47. Rf2 {[%clk 0:00:04.4]} 47... h5 {[%clk 0:00:17.2]} 48. Ke4
{[%clk 0:00:04.5]} 48... Nc3+ {[%clk 0:00:17.3]} 49. Kd3 {[%clk 0:00:05.1]}
49... Nd5 {[%clk 0:00:18.2]} 50. Kc4 {[%clk 0:00:05.1]} 50... Nf4 {[%clk
0:00:15.7]} 51. Ra2 {[%clk 0:00:02.7]} 51... h4 {[%clk 0:00:15.7]} 52. Kc5
{[%clk 0:00:03.2]} 52... Kg4 {[%clk 0:00:14.4]} 53. Kd6 {[%clk 0:00:03.7]} 53...
Kg3 {[%clk 0:00:15]} 54. Ke7 {[%clk 0:00:01.8]} 54... Nxg2 {[%clk 0:00:13.1]}
55. Kxe6 {[%clk 0:00:02.5]} 55... h3 {[%clk 0:00:12.9]} 56. Ra3+ {[%clk
0:00:03.2]} 56... Kg4 {[%clk 0:00:13.1]} 57. Rxh3 {[%clk 0:00:03.3]} 57... Nf4+
{[%clk 0:00:13.5]} 58. Kf7 {[%clk 0:00:02.5]} 58... Nxh3 {[%clk 0:00:04.8]} 59.
e6 {[%clk 0:00:03]} 59... Ng5+ {[%clk 0:00:05.2]} 60. Kf6 {[%clk 0:00:03.7]}
60... Nh7+ {[%clk 0:00:02.8]} 61. Ke5 {[%clk 0:00:03.8]} 61... Nf8 {[%clk
0:00:02.1]} 62. e7 {[%clk 0:00:04.4]} 62... Ng6+ {[%clk 0:00:02.8]} 63. Kf6
{[%clk 0:00:05.1]} 63... Nxe7 {[%clk 0:00:02.7]} 64. Kxe7 {[%clk 0:00:06]} 64...
Kf5 {[%clk 0:00:03.5]} 65. d5 {[%clk 0:00:06.6]} 1-0

[Event "Late-Titled-Tuesday-Blitz-February-06-2024"]
[Site "Chess.com"]
[Date "2024.02.06"]
[Round "9"]
[White "JonasEilenberg"]
[Black "Boninknights"]
[Result "1-0"]
[WhiteElo "2519"]
[BlackElo "2350"]
[TimeControl "180+1"]
[EndTime "15:45:40 PST"]
[Termination "JonasEilenberg won on time"]

1. d4 {[%clk 0:02:49.5]} 1... Nf6 {[%clk 0:02:58.9]} 2. Nf3 {[%clk 0:02:50.1]}
2... d6 {[%clk 0:02:58]} 3. c4 {[%clk 0:02:46.3]} 3... g6 {[%clk 0:02:56.9]} 4.
Nc3 {[%clk 0:02:46.9]} 4... Bg7 {[%clk 0:02:56.8]} 5. e4 {[%clk 0:02:47.2]} 5...
O-O {[%clk 0:02:56.6]} 6. Be2 {[%clk 0:02:45.6]} 6... Bg4 {[%clk 0:02:54.5]} 7.
O-O {[%clk 0:02:45.2]} 7... Nc6 {[%clk 0:02:52.1]} 8. d5 {[%clk 0:02:41.8]} 8...
Bxf3 {[%clk 0:02:51.2]} 9. Bxf3 {[%clk 0:02:41.8]} 9... Ne5 {[%clk 0:02:50.8]}
10. Be2 {[%clk 0:02:42.5]} 10... c6 {[%clk 0:02:50.7]} 11. Be3 {[%clk
0:02:40.4]} 11... Qa5 {[%clk 0:02:48.8]} 12. f4 {[%clk 0:02:34.5]} 12... Ned7
{[%clk 0:02:45.9]} 13. Bd4 {[%clk 0:02:34.4]} 13... Rfc8 {[%clk 0:02:37.5]} 14.
a3 {[%clk 0:02:31.3]} 14... Ne8 {[%clk 0:02:33.6]} 15. Bxg7 {[%clk 0:02:29.2]}
15... Nxg7 {[%clk 0:02:31.4]} 16. Kh1 {[%clk 0:02:27.6]} 16... cxd5 {[%clk
0:02:16.2]} 17. cxd5 {[%clk 0:02:15.9]} 17... Qb6 {[%clk 0:02:05.6]} 18. Qd2
{[%clk 0:02:08.9]} 18... Nc5 {[%clk 0:02:02.2]} 19. Rad1 {[%clk 0:02:08.6]}
19... Nb3 {[%clk 0:01:57.9]} 20. Qd3 {[%clk 0:02:09.1]} 20... Qa5 {[%clk
0:01:46.1]} 21. Qb5 {[%clk 0:01:44.4]} 21... Qxb5 {[%clk 0:01:39.3]} 22. Bxb5
{[%clk 0:01:45.3]} 22... Rc5 {[%clk 0:01:33.3]} 23. Ba4 {[%clk 0:01:40.6]} 23...
Na5 {[%clk 0:01:30.8]} 24. Bb5 {[%clk 0:01:31.8]} 24... a6 {[%clk 0:01:19.9]}
25. Be2 {[%clk 0:01:31.4]} 25... Rac8 {[%clk 0:01:15.4]} 26. Rd4 {[%clk
0:01:28.6]} 26... Nc4 {[%clk 0:01:10.8]} 27. Na4 {[%clk 0:01:11.4]} 27... R5c7
{[%clk 0:01:08.8]} 28. Rc1 {[%clk 0:01:08.9]} 28... b5 {[%clk 0:00:42.2]} 29.
Bxc4 {[%clk 0:00:50.2]} 29... bxa4 {[%clk 0:00:41.6]} 30. Rc3 {[%clk 0:00:50.4]}
30... Nh5 {[%clk 0:00:37.7]} 31. g3 {[%clk 0:00:50.2]} 31... Nf6 {[%clk
0:00:37.1]} 32. Bxa6 {[%clk 0:00:41.3]} 32... Rxc3 {[%clk 0:00:34.8]} 33. bxc3
{[%clk 0:00:42.2]} 33... Rxc3 {[%clk 0:00:33.5]} 34. Rxa4 {[%clk 0:00:42.8]}
34... Re3 {[%clk 0:00:32.5]} 35. Bb7 {[%clk 0:00:35.1]} 35... Nxe4 {[%clk
0:00:30.7]} 36. Bc6 {[%clk 0:00:19.4]} 36... Nc5 {[%clk 0:00:29.4]} 37. Ra8+
{[%clk 0:00:16.3]} 37... Kg7 {[%clk 0:00:28.4]} 38. a4 {[%clk 0:00:17.2]} 38...
Ra3 {[%clk 0:00:25.4]} 39. a5 {[%clk 0:00:17.4]} 39... e6 {[%clk 0:00:22]} 40.
dxe6 {[%clk 0:00:16.5]} 40... fxe6 {[%clk 0:00:21.2]} 41. Bb5 {[%clk 0:00:16.9]}
41... d5 {[%clk 0:00:19.7]} 42. a6 {[%clk 0:00:16.8]} 42... d4 {[%clk
0:00:18.6]} 43. Rc8 {[%clk 0:00:09.9]} 43... Nxa6 {[%clk 0:00:17.4]} 44. Ra8
{[%clk 0:00:10.6]} 44... d3 {[%clk 0:00:15.5]} 45. Rxa6 {[%clk 0:00:10.2]} 45...
d2 {[%clk 0:00:13.1]} 46. Rxa3 {[%clk 0:00:04.3]} 46... d1=Q+ {[%clk 0:00:12.1]}
47. Kg2 {[%clk 0:00:05.2]} 47... Qc2+ {[%clk 0:00:11.1]} 48. Kh3 {[%clk
0:00:05.5]} 48... Qf5+ {[%clk 0:00:10.1]} 49. Kg2 {[%clk 0:00:06.2]} 49... Qxb5
{[%clk 0:00:09.1]} 50. Re3 {[%clk 0:00:07.1]} 50... Qd5+ {[%clk 0:00:08.2]} 51.
Kh3 {[%clk 0:00:04.9]} 51... Kf6 {[%clk 0:00:07.5]} 52. Re2 {[%clk 0:00:03.1]}
52... g5 {[%clk 0:00:06.3]} 53. fxg5+ {[%clk 0:00:03.2]} 53... Kxg5 {[%clk
0:00:05.7]} 54. Re3 {[%clk 0:00:03.2]} 54... e5 {[%clk 0:00:05]} 55. Ra3 {[%clk
0:00:02.2]} 55... e4 {[%clk 0:00:04.5]} 56. Ra7 {[%clk 0:00:02]} 56... h5 {[%clk
0:00:03.3]} 57. Re7 {[%clk 0:00:01.8]} 57... Qd4 {[%clk 0:00:02]} 58. Kg2 {[%clk
0:00:01.6]} 58... Qd2+ {[%clk 0:00:01]} 59. Kh3 {[%clk 0:00:01.9]} 1-0

[Event "Late-Titled-Tuesday-Blitz-February-06-2024"]
[Site "Chess.com"]
[Date "2024.02.06"]
[Round "9"]
[White "dretch"]
[Black "JoakimVonAnd"]
[Result "1-0"]
[WhiteElo "2846"]
[BlackElo "2675"]
[TimeControl "180+1"]
[EndTime "15:45:43 PST"]
[Termination "dretch won by checkmate"]

1. d4 {[%clk 0:03:00.9]} 1... d5 {[%clk 0:03:00]} 2. c4 {[%clk 0:03:00.9]} 2...
e6 {[%clk 0:03:00.2]} 3. Nc3 {[%clk 0:03:01.1]} 3... c5 {[%clk 0:03:00.8]} 4.
cxd5 {[%clk 0:03:00.1]} 4... exd5 {[%clk 0:03:01.7]} 5. Nf3 {[%clk 0:02:59.9]}
5... Nf6 {[%clk 0:03:01.8]} 6. Bg5 {[%clk 0:02:57.9]} 6... Be6 {[%clk
0:03:00.9]} 7. g3 {[%clk 0:02:54.5]} 7... h6 {[%clk 0:02:55.2]} 8. Bxf6 {[%clk
0:02:52.1]} 8... Qxf6 {[%clk 0:02:56.1]} 9. Bg2 {[%clk 0:02:52.6]} 9... Nc6
{[%clk 0:02:55.1]} 10. dxc5 {[%clk 0:02:52.5]} 10... Bxc5 {[%clk 0:02:51.4]} 11.
O-O {[%clk 0:02:49.5]} 11... O-O-O {[%clk 0:02:44.2]} 12. Rc1 {[%clk 0:02:44.4]}
12... Kb8 {[%clk 0:02:44.5]} 13. Ne1 {[%clk 0:02:38.2]} 13... Rhe8 {[%clk
0:02:39.7]} 14. Nd3 {[%clk 0:02:36.1]} 14... Bd4 {[%clk 0:02:40]} 15. Qa4 {[%clk
0:02:30.9]} 15... Bg4 {[%clk 0:02:34.5]} 16. e3 {[%clk 0:02:20.1]} 16... Bxc3
{[%clk 0:02:19.2]} 17. Qxg4 {[%clk 0:02:19.5]} 17... Bxb2 {[%clk 0:02:12.2]} 18.
Rxc6 {[%clk 0:02:12.6]} 18... Qxc6 {[%clk 0:01:57.5]} 19. Nxb2 {[%clk
0:02:11.3]} 19... Qc2 {[%clk 0:01:52.4]} 20. Qb4 {[%clk 0:02:04.2]} 20... Re6
{[%clk 0:01:44]} 21. Na4 {[%clk 0:01:50.7]} 21... Qc4 {[%clk 0:01:41.7]} 22. Qa3
{[%clk 0:01:23.5]} 22... Ra6 {[%clk 0:01:37.3]} 23. Qe7 {[%clk 0:01:22.5]} 23...
Qc7 {[%clk 0:01:34.1]} 24. Qb4 {[%clk 0:01:13.8]} 24... Qc4 {[%clk 0:01:24]} 25.
Rb1 {[%clk 0:01:08.6]} 25... Qxb4 {[%clk 0:01:18.1]} 26. Rxb4 {[%clk 0:01:09.5]}
26... Rc6 {[%clk 0:01:18.8]} 27. Bf3 {[%clk 0:01:07.5]} 27... Rc1+ {[%clk
0:01:16.4]} 28. Kg2 {[%clk 0:01:07.2]} 28... Rc2 {[%clk 0:01:17.3]} 29. Nb2
{[%clk 0:01:00.3]} 29... b6 {[%clk 0:01:15.1]} 30. a4 {[%clk 0:00:58.8]} 30...
Kc7 {[%clk 0:01:14]} 31. Rb3 {[%clk 0:00:53.8]} 31... d4 {[%clk 0:01:09.2]} 32.
exd4 {[%clk 0:00:44.8]} 32... Rxd4 {[%clk 0:01:10.1]} 33. a5 {[%clk 0:00:45.3]}
33... Rdd2 {[%clk 0:00:57.4]} 34. axb6+ {[%clk 0:00:44]} 34... axb6 {[%clk
0:00:56.5]} 35. Nd3 {[%clk 0:00:44.3]} 35... b5 {[%clk 0:00:55.8]} 36. Kf1
{[%clk 0:00:42]} 36... Kb6 {[%clk 0:00:52.6]} 37. Ke1 {[%clk 0:00:41.6]} 37...
Ka5 {[%clk 0:00:52.6]} 38. Ra3+ {[%clk 0:00:31.8]} 38... Kb6 {[%clk 0:00:52.8]}
39. Bd1 {[%clk 0:00:28.9]} 39... Ra2 {[%clk 0:00:50.3]} 40. Rb3 {[%clk
0:00:25.7]} 40... Ka5 {[%clk 0:00:47.2]} 41. h4 {[%clk 0:00:24.3]} 41... g6
{[%clk 0:00:36.2]} 42. Rc3 {[%clk 0:00:16.7]} 42... b4 {[%clk 0:00:28.3]} 43.
Rb3 {[%clk 0:00:14.4]} 43... g5 {[%clk 0:00:04.8]} 44. hxg5 {[%clk 0:00:13]}
44... hxg5 {[%clk 0:00:05.7]} 45. Nxb4 {[%clk 0:00:11.4]} 45... Rab2 {[%clk
0:00:06.3]} 46. Nc6+ {[%clk 0:00:09.8]} 46... Ka6 {[%clk 0:00:06.5]} 47. Rxb2
{[%clk 0:00:04.1]} 47... Rxb2 {[%clk 0:00:06.5]} 48. Ne5 {[%clk 0:00:04.5]}
48... f6 {[%clk 0:00:06.6]} 49. Ng4 {[%clk 0:00:04.8]} 49... f5 {[%clk 0:00:07]}
50. Ne3 {[%clk 0:00:04.5]} 50... f4 {[%clk 0:00:07.6]} 51. gxf4 {[%clk
0:00:04.6]} 51... gxf4 {[%clk 0:00:08.5]} 52. Nd5 {[%clk 0:00:05.2]} 52... Kb5
{[%clk 0:00:06.8]} 53. Nxf4 {[%clk 0:00:05.4]} 53... Kc5 {[%clk 0:00:07.4]} 54.
Nd3+ {[%clk 0:00:04.5]} 54... Kd4 {[%clk 0:00:05.9]} 55. Nxb2 {[%clk 0:00:05.4]}
55... Ke4 {[%clk 0:00:06.8]} 56. Ke2 {[%clk 0:00:05.1]} 56... Kf4 {[%clk
0:00:06.7]} 57. f3 {[%clk 0:00:05.7]} 57... Kf5 {[%clk 0:00:07.1]} 58. Ke3
{[%clk 0:00:06.6]} 58... Ke5 {[%clk 0:00:08]} 59. f4+ {[%clk 0:00:07.2]} 59...
Kf5 {[%clk 0:00:08.9]} 60. Kf3 {[%clk 0:00:07.8]} 60... Kf6 {[%clk 0:00:09.8]}
61. Ke4 {[%clk 0:00:08.4]} 61... Ke6 {[%clk 0:00:10.7]} 62. f5+ {[%clk
0:00:09.1]} 62... Kf6 {[%clk 0:00:11.6]} 63. Kf4 {[%clk 0:00:09.8]} 63... Kf7
{[%clk 0:00:12.5]} 64. Ke5 {[%clk 0:00:10.5]} 64... Ke7 {[%clk 0:00:13.4]} 65.
f6+ {[%clk 0:00:11.2]} 65... Kf7 {[%clk 0:00:14.3]} 66. Kf5 {[%clk 0:00:11.9]}
66... Kf8 {[%clk 0:00:15.2]} 67. Ke6 {[%clk 0:00:12.6]} 67... Ke8 {[%clk
0:00:16.1]} 68. f7+ {[%clk 0:00:13.2]} 68... Kf8 {[%clk 0:00:17]} 69. Bc2 {[%clk
0:00:13.4]} 69... Kg7 {[%clk 0:00:17.4]} 70. Ke7 {[%clk 0:00:13.9]} 70... Kh6
{[%clk 0:00:18]} 71. f8=Q+ {[%clk 0:00:13.7]} 71... Kg5 {[%clk 0:00:18.9]} 72.
Qf6+ {[%clk 0:00:13.6]} 72... Kg4 {[%clk 0:00:19.1]} 73. Nd3 {[%clk 0:00:12.4]}
73... Kg3 {[%clk 0:00:20]} 74. Qf4+ {[%clk 0:00:12.2]} 74... Kg2 {[%clk
0:00:20.9]} 75. Bb3 {[%clk 0:00:11.8]} 75... Kh1 {[%clk 0:00:21.8]} 76. Qg4
{[%clk 0:00:11.7]} 76... Kh2 {[%clk 0:00:22.1]} 77. Ne1 {[%clk 0:00:12]} 77...
Kh1 {[%clk 0:00:22.4]} 78. Qg2# {[%clk 0:00:12.1]} 1-0

[Event "Late-Titled-Tuesday-Blitz-February-06-2024"]
[Site "Chess.com"]
[Date "2024.02.06"]
[Round "9"]
[White "BogdanDeac"]
[Black "Konavets"]
[Result "1/2-1/2"]
[WhiteElo "3008"]
[BlackElo "3115"]
[TimeControl "180+1"]
[EndTime "15:45:44 PST"]
[Termination "Game drawn by repetition"]

1. d4 {[%clk 0:03:00.9]} 1... Nf6 {[%clk 0:02:59.9]} 2. Nf3 {[%clk 0:03:00.3]}
2... d5 {[%clk 0:02:58.7]} 3. c4 {[%clk 0:03:00.1]} 3... e6 {[%clk 0:02:58.5]}
4. Nc3 {[%clk 0:02:59.9]} 4... h6 {[%clk 0:02:57.5]} 5. Bf4 {[%clk 0:02:53]}
5... Bb4 {[%clk 0:02:57.3]} 6. cxd5 {[%clk 0:02:48.9]} 6... Nxd5 {[%clk
0:02:57.3]} 7. Bd2 {[%clk 0:02:48.6]} 7... c5 {[%clk 0:02:57.8]} 8. Nxd5 {[%clk
0:02:03.4]} 8... Bxd2+ {[%clk 0:02:54.8]} 9. Qxd2 {[%clk 0:02:02]} 9... exd5
{[%clk 0:02:23]} 10. dxc5 {[%clk 0:02:01.2]} 10... a5 {[%clk 0:02:23.3]} 11. e3
{[%clk 0:01:56.3]} 11... O-O {[%clk 0:02:23.7]} 12. Be2 {[%clk 0:01:10.7]} 12...
Be6 {[%clk 0:02:21.4]} 13. O-O {[%clk 0:01:07.4]} 13... Nd7 {[%clk 0:02:21.6]}
14. Rfc1 {[%clk 0:01:01]} 14... Rc8 {[%clk 0:02:21.5]} 15. b4 {[%clk 0:00:58.8]}
15... axb4 {[%clk 0:02:14.2]} 16. Qxb4 {[%clk 0:00:59]} 16... Rc7 {[%clk
0:02:13.3]} 17. Bb5 {[%clk 0:00:41.7]} 17... Nf6 {[%clk 0:02:12.6]} 18. Nd4
{[%clk 0:00:37.3]} 18... Qe7 {[%clk 0:02:05.8]} 19. a3 {[%clk 0:00:34.5]} 19...
Rfc8 {[%clk 0:01:53.3]} 20. c6 {[%clk 0:00:27.3]} 20... Qxb4 {[%clk 0:01:53.3]}
21. axb4 {[%clk 0:00:27]} 21... Bd7 {[%clk 0:01:53.9]} 22. Ra7 {[%clk
0:00:22.2]} 22... Ne4 {[%clk 0:01:38.9]} 23. f3 {[%clk 0:00:19.7]} 23... Nd6
{[%clk 0:01:39]} 24. Ba4 {[%clk 0:00:19.4]} 24... bxc6 {[%clk 0:01:26.2]} 25.
Rxc7 {[%clk 0:00:18.9]} 25... Rxc7 {[%clk 0:01:27.1]} 26. Bxc6 {[%clk
0:00:19.3]} 26... Kf8 {[%clk 0:01:12.7]} 27. Rc5 {[%clk 0:00:15.1]} 27... Bxc6
{[%clk 0:00:49.3]} 28. Rxc6 {[%clk 0:00:14.2]} 28... Rd7 {[%clk 0:00:49.7]} 29.
Kf2 {[%clk 0:00:05.5]} 29... Ke7 {[%clk 0:00:45.9]} 30. Ra6 {[%clk 0:00:04.9]}
30... Rb7 {[%clk 0:00:41.6]} 31. g4 {[%clk 0:00:04.6]} 31... Kd7 {[%clk
0:00:40]} 32. Ra4 {[%clk 0:00:04.8]} 32... g6 {[%clk 0:00:37.7]} 33. h4 {[%clk
0:00:04.4]} 33... Nc4 {[%clk 0:00:34.1]} 34. Ke2 {[%clk 0:00:04.5]} 34... Nb2
{[%clk 0:00:31.9]} 35. Ra5 {[%clk 0:00:04.5]} 35... Rxb4 {[%clk 0:00:31.9]} 36.
Rxd5+ {[%clk 0:00:04.6]} 36... Kc7 {[%clk 0:00:26.5]} 37. Rc5+ {[%clk
0:00:03.8]} 37... Kd6 {[%clk 0:00:24.6]} 38. Rc6+ {[%clk 0:00:04.1]} 38... Kd7
{[%clk 0:00:23.5]} 39. Rf6 {[%clk 0:00:03.3]} 39... Ke7 {[%clk 0:00:18]} 40. Ra6
{[%clk 0:00:02.1]} 40... Ra4 {[%clk 0:00:11.8]} 41. Rb6 {[%clk 0:00:01.7]} 41...
Nc4 {[%clk 0:00:11.7]} 42. Rb7+ {[%clk 0:00:02.3]} 42... Kf6 {[%clk 0:00:11.4]}
43. h5 {[%clk 0:00:02.6]} 43... Ra2+ {[%clk 0:00:10.9]} 44. Kd3 {[%clk
0:00:02.7]} 44... Nd6 {[%clk 0:00:06.9]} 45. Rb6 {[%clk 0:00:01.9]} 45... Ke7
{[%clk 0:00:07.3]} 46. hxg6 {[%clk 0:00:02.2]} 46... fxg6 {[%clk 0:00:08.2]} 47.
Nc6+ {[%clk 0:00:02.8]} 47... Ke6 {[%clk 0:00:07.3]} 48. Nd4+ {[%clk 0:00:03.7]}
48... Kd7 {[%clk 0:00:07.5]} 49. f4 {[%clk 0:00:04.3]} 49... Ra3+ {[%clk
0:00:07.7]} 50. Rb3 {[%clk 0:00:03.8]} 50... Ra1 {[%clk 0:00:07.4]} 51. Rc3
{[%clk 0:00:03.5]} 51... Rd1+ {[%clk 0:00:07.4]} 52. Ke2 {[%clk 0:00:03.5]}
52... Rg1 {[%clk 0:00:08.3]} 53. Kf3 {[%clk 0:00:03.8]} 53... Rf1+ {[%clk
0:00:09]} 54. Kg2 {[%clk 0:00:04.3]} 54... Ra1 {[%clk 0:00:09.1]} 55. Rb3 {[%clk
0:00:04.8]} 55... Nc4 {[%clk 0:00:07.3]} 56. Kf2 {[%clk 0:00:04.4]} 56... Ra2+
{[%clk 0:00:07.4]} 57. Kg3 {[%clk 0:00:04.7]} 57... Nd2 {[%clk 0:00:07.4]} 58.
Rd3 {[%clk 0:00:04.3]} 58... Ne4+ {[%clk 0:00:07.6]} 59. Kf3 {[%clk 0:00:04.6]}
59... Nd2+ {[%clk 0:00:07.9]} 60. Kg3 {[%clk 0:00:04.6]} 60... Nf1+ {[%clk
0:00:07]} 61. Kf3 {[%clk 0:00:04.6]} 61... Nd2+ {[%clk 0:00:07.1]} 62. Ke2
{[%clk 0:00:04.9]} 62... Ne4+ {[%clk 0:00:06.6]} 63. Ke1 {[%clk 0:00:05.2]}
63... Ke7 {[%clk 0:00:07]} 64. f5 {[%clk 0:00:05.1]} 64... Kf6 {[%clk
0:00:06.6]} 65. fxg6 {[%clk 0:00:04.9]} 65... Kxg6 {[%clk 0:00:06.8]} 66. Nf3
{[%clk 0:00:05.5]} 66... Ra1+ {[%clk 0:00:07]} 67. Ke2 {[%clk 0:00:05.3]} 67...
Ra2+ {[%clk 0:00:07.5]} 68. Ke1 {[%clk 0:00:05.6]} 68... Ra1+ {[%clk 0:00:07.9]}
69. Ke2 {[%clk 0:00:05.8]} 69... Ra2+ {[%clk 0:00:08.3]} 70. Ke1 {[%clk
0:00:06]} 1/2-1/2